bitfinex-derivatives/quotes_ETHF0:USTF0_20250125
["timestamp","ask_amount","ask_price","bid_price","bid_amount"]
[1737773289384,4.87974896,3299.2,3299.1,1e-08]
[1737773290486,9.87974896,3299.2,3299.1,1e-08]
[1737773291088,4.87974896,3299.2,3299.1,1e-08]
[1737773291791,9.87974896,3299.2,3299.1,1e-08]
[1737773291993,9.92853207,3299.2,3299.1,1e-08]
[1737773292192,10.16840661,3299.2,3299.1,1e-08]
[1737773292697,10.16840623,3299.2,3299.1,1e-08]
[1737773293196,10.11962265,3299.2,3299.1,1e-08]
[1737773293389,10.16840596,3299.2,3299.1,1e-08]
[1737773293694,10.16840621,3299.2,3299.1,1e-08]
[1737773294092,10.16840609,3299.2,3299.1,1e-08]
[1737773294589,10.11962265,3299.2,3299.1,1e-08]
[1737773295295,5.11962265,3299.2,3299.1,1e-08]
[1737773296091,4.87974896,3299.2,3299.1,1e-08]
[1737773301104,4.92853277,3299.2,3299.1,1e-08]
[1737773302304,9.92853277,3299.2,3299.1,1e-08]
[1737773302505,10.17022332,3299.2,3299.1,1e-08]
[1737773302701,5.17022332,3299.2,3299.1,1e-08]
[1737773302901,5.12143951,3299.2,3299.1,1e-08]
[1737773303107,5.17022457,3299.2,3299.1,1e-08]
[1737773303499,10.17022457,3299.2,3299.1,1e-08]
[1737773304702,10.17022573,3299.2,3299.1,1e-08]
[1737773306012,13.16722573,3299.2,3299.1,1e-08]
[1737773306511,13.16722507,3299.2,3299.1,1e-08]
[1737773306808,8.16722507,3299.2,3299.1,1e-08]
[1737773307205,9.12322507,3299.2,3299.1,1e-08]
[1737773307402,8.63824507,3299.2,3298.1,0.5138]
[1737773307605,6.02138309,3298.2,3298.1,0.5138]
[1737773310209,11.74385813,3298.2,3296.9,2.984]
[1737773310406,0.48529,3297.1,3297.0,0.4932]
[1737773310612,0.48535,3296.7,3296.3,9.44784397]
[1737773310806,3.69315,3296.7,3296.3,9.44784397]
[1737773311109,3.69315,3296.7,3296.2,0.4932]
[1737773311110,7.22206475,3296.7,3296.2,5.22951447]
[1737773311405,2.32845309,3296.3,3296.2,5.22951447]
[1737773311610,0.48539,3296.5,3296.2,5.22951447]
[1737773312109,3.69317,3296.7,3296.2,5.22951447]
[1737773312309,3.2078,3296.7,3296.2,5.22951447]
[1737773312511,0.48538,3296.6,3296.2,5.22951447]
[1737773312699,2.81386309,3296.3,3296.2,5.22951447]
[1737773314812,2.32845309,3296.3,3296.2,5.22951447]
[1737773315715,2.32845309,3296.3,3296.2,0.4932]
[1737773315909,2.81386309,3296.3,3296.2,0.4932]
[1737773320824,2.32845309,3296.3,3296.2,0.4932]
[1737773321423,2.81386309,3296.3,3296.2,0.4932]
[1737773321617,2.32845309,3296.3,3296.2,0.4932]
[1737773323117,2.81386309,3296.3,3296.2,0.4932]
[1737773324025,9.40074263,3296.3,3294.9,3.2078]
[1737773324225,9.40074263,3296.3,3295.0,1.0013]
[1737773324226,0.48554,3295.4,3295.0,1.0013]
[1737773324522,2.32845309,3295.5,3295.0,1.0013]
[1737773324827,0.48555,3295.4,3295.0,1.0013]
[1737773325227,3.86541271,3295.3,3295.0,1.0013]
[1737773325525,3.86541271,3295.3,3295.0,1.48689]
[1737773325727,3.86541271,3295.3,3295.1,0.48559]
[1737773325927,2.32845309,3295.5,3295.1,0.48559]
[1737773326120,2.81398309,3295.5,3295.1,0.48559]
[1737773326721,2.81398309,3295.5,3295.0,1.4869]
[1737773327927,3.2078,3295.7,3295.0,1.4869]
[1737773327928,3.2078,3295.7,3295.0,1.0013]
[1737773328121,2.32845309,3295.8,3295.4,0.48554]
[1737773328322,2.32845309,3295.8,3295.5,0.481]
[1737773329431,2.32845309,3295.8,3295.6,0.5175]
[1737773329631,2.32845309,3295.8,3295.7,0.5252]
[1737773330133,2.81394309,3295.8,3295.7,0.5252]
[1737773331428,2.32845309,3295.8,3295.7,0.5252]
[1737773332325,3.2078,3296.1,3295.7,0.5252]
[1737773332627,3.2078,3296.1,3295.9,0.48546]
[1737773332829,3.2078,3296.1,3296.0,0.48546]
[1737773333028,2.32845309,3296.4,3296.1,0.48544]
[1737773333229,2.32845309,3296.4,3296.2,1.0056]
[1737773333832,5.53625309,3296.7,3296.2,1.0056]
[1737773334031,3.2078,3296.7,3296.2,1.0056]
[1737773334234,3.2078,3296.7,3296.4,0.48539]
[1737773334434,3.2078,3296.7,3296.5,0.5187]
[1737773335134,0.00454469,3296.8,3296.6,0.48536]
[1737773336335,0.00454469,3296.8,3296.5,1.00408]
[1737773338133,0.00454469,3296.8,3296.5,0.5187]
[1737773338330,0.00454469,3296.8,3296.6,0.48536]
[1737773339841,0.00454469,3296.8,3296.5,0.5187]
[1737773340042,0.00454469,3296.8,3296.7,3.69315]
[1737773340338,5.53625309,3297.6,3297.1,0.48529]
[1737773340541,5.53625309,3297.6,3297.2,1.5092]
[1737773340936,5.53625309,3297.6,3297.2,1.99448]
[1737773341137,2.32845309,3297.6,3297.2,1.99448]
[1737773341352,2.81368309,3297.6,3297.2,1.5092]
[1737773341553,0.48524,3297.5,3297.2,1.5092]
[1737773341854,2.81367309,3297.6,3297.2,1.5092]
[1737773342155,2.32845309,3297.6,3297.2,1.99447]
[1737773342350,0.00455208,3297.7,3297.2,1.99447]
[1737773342557,0.00455208,3297.7,3297.6,0.48522]
[1737773345844,0.48522,3297.6,3297.4,0.00172377]
[1737773346554,0.00455208,3297.7,3297.4,0.48696377]
[1737773346555,0.48976208,3297.7,3297.4,0.48696377]
[1737773346750,0.00455208,3297.7,3297.6,0.48522]
[1737773350453,0.00455208,3297.7,3297.6,3.46922]
[1737773351456,0.48976208,3297.7,3297.6,2.984]
[1737773351657,3.69756208,3297.7,3297.6,2.984]
[1737773351952,3.69756208,3297.7,3297.4,0.00172377]
[1737773351953,0.48523,3297.5,3297.4,0.00172377]
[1737773352257,2.81368309,3297.5,3297.4,0.00172377]
[1737773354149,2.32845309,3297.5,3297.4,0.00172377]
[1737773355954,2.81368309,3297.5,3297.4,0.00172377]
[1737773356856,2.32845309,3297.5,3297.4,0.00172377]
[1737773357950,3.21235208,3297.7,3297.5,0.48523]
[1737773358155,3.21235208,3297.7,3297.6,0.48522]
[1737773358554,0.00455208,3297.7,3297.6,0.48522]
[1737773362459,0.00455208,3297.7,3297.6,3.46922]
[1737773363054,3.2078,3298.6,3297.6,7.984]
[1737773363361,0.4851,3298.4,3298.1,0.48514]
[1737773363755,0.48512,3298.3,3298.2,0.5209]
[1737773364161,2.80745309,3298.7,3298.2,0.5209]
[1737773364358,0.48511,3298.4,3298.2,0.5209]
[1737773364859,0.48962208,3298.6,3298.2,1.00603]
[1737773365161,0.00455208,3298.6,3298.2,1.00603]
[1737773365360,0.00455208,3298.6,3298.5,0.48509]
[1737773366961,0.00455208,3298.6,3298.4,0.48509]
[1737773367762,0.00455208,3298.6,3298.2,0.5209]
[1737773367963,0.00455208,3298.6,3298.5,0.48509]
[1737773372061,0.00455208,3298.6,3298.5,8.46909]
[1737773372264,4.68835,3299.5,3298.5,7.984]
[1737773372452,4.2034,3299.5,3298.8,3.2078]
[1737773372657,4.2034,3299.5,3299.3,0.48496]
[1737773372862,4.2034,3299.5,3298.9,0.493]
[1737773372863,4.2034,3299.5,3298.9,1.5049]
[1737773373369,0.50355208,3299.5,3298.9,1.50945208]
[1737773373568,0.50355208,3299.5,3299.4,0.48496]
[1737773374556,0.50355208,3299.5,3299.2,3.2078]
[1737773374557,0.50355208,3299.5,3299.3,0.48496]
[1737773374762,0.50355208,3299.5,3299.2,3.2078]
[1737773374963,0.00455208,3299.5,3299.4,0.48496]
[1737773377267,2.08e-06,3299.5,3299.4,0.48496]
[1737773377565,2.08e-06,3299.5,3299.4,5.48496]
[1737773379366,2.08e-06,3299.5,3299.4,0.48496]
[1737773380174,1.0175,3299.8,3299.6,0.48492]
[1737773380376,1.0175,3299.8,3299.7,0.48491]
[1737773383174,0.00455208,3300.1,3299.6,3.2078]
[1737773383369,0.00455208,3300.1,3300.0,0.48487]
[1737773384874,0.00455208,3300.1,3300.0,3.69267]
[1737773386080,0.00455208,3300.1,3300.0,0.48487]
[1737773387279,0.9604,3300.4,3299.7,1.467]
[1737773387476,0.9604,3300.4,3300.3,0.48482]
[1737773391782,0.00454496,3300.7,3300.3,0.48482]
[1737773391992,0.00454496,3300.7,3300.6,0.48478]
[1737773393879,0.48479,3300.6,3300.0,0.48487]
[1737773394077,0.48479,3300.6,3299.9,3.2078]
[1737773394078,3.36275309,3300.5,3299.9,3.2078]
[1737773394275,0.48487,3300.0,3299.9,3.2078]
[1737773394680,0.4849,3299.8,3299.5,0.48493]
[1737773394881,1.0334,3299.9,3299.5,0.48493]
[1737773395189,0.4849,3299.8,3299.5,0.48493]
[1737773395388,1.0334,3299.9,3299.3,3.2078]
[1737773395687,0.4849,3299.8,3299.6,0.48492]
[1737773396286,0.48483,3300.3,3299.8,0.4849]
[1737773396486,0.48483,3300.3,3299.7,3.2078]
[1737773396882,0.48484,3300.2,3299.9,0.48487]
[1737773397078,0.48485,3300.2,3299.8,0.96979]
[1737773397790,0.48486,3300.1,3299.8,0.96979]
[1737773398288,7.35286886,3300.5,3299.8,0.4849]
[1737773398591,0.48484,3300.3,3299.8,0.4849]
[1737773398788,0.48484,3300.3,3300.0,0.48487]
[1737773399482,3.33755309,3300.5,3299.8,0.4849]
[1737773399686,0.48482,3300.4,3300.1,0.48485]
[1737773399886,0.48483,3300.3,3300.0,0.48486]
[1737773400483,0.48481,3300.4,3300.1,0.48485]
[1737773401081,3.82235309,3300.5,3299.9,0.48488]
[1737773401285,3.82235309,3300.5,3299.8,1.5102]
[1737773401286,1.4939,3300.5,3299.8,1.5102]
[1737773401586,1.4939,3300.5,3300.2,0.48483]
[1737773401792,0.5068,3300.5,3300.4,0.48481]
[1737773401990,3.2078,3300.6,3300.5,0.48479]
[1737773402684,0.00454496,3300.7,3300.5,3.2078]
[1737773402889,0.00454496,3300.7,3300.6,1.97248]
[1737773408585,0.48931496,3300.7,3300.5,3.2078]
[1737773409390,0.48931496,3300.7,3300.5,3.69259]
[1737773409790,0.00454496,3300.7,3300.5,3.69259]
[1737773409981,0.00454496,3300.7,3300.5,0.48479]
[1737773410289,0.48930496,3300.7,3300.5,0.48479]
[1737773410691,0.48930496,3300.7,3300.4,0.4848]
[1737773411191,0.00454496,3300.7,3300.3,2.984]
[1737773411493,0.48481,3300.4,3300.3,2.984]
[1737773411895,0.48484,3300.2,3300.1,3.2078]
[1737773412085,0.48486,3300.1,3299.7,0.4849]
[1737773412291,1.0268,3300.4,3299.7,0.4849]
[1737773412496,0.48486,3300.1,3299.7,0.4849]
[1737773412689,1.0268,3300.4,3299.5,1.5336]
[1737773412993,4.2346,3300.4,3299.8,0.4849]
[1737773413297,4.2346,3300.4,3299.7,3.2078]
[1737773413489,4.2346,3300.4,3300.3,0.48482]
[1737773413993,4.71941,3300.4,3300.1,0.48484]
[1737773414199,4.2346,3300.4,3299.7,3.2078]
[1737773414394,0.48486,3300.1,3299.8,0.4849]
[1737773414694,0.48486,3300.1,3299.7,3.6927]
[1737773414997,4.2346,3300.4,3299.7,3.2078]
[1737773415293,0.48484,3300.2,3299.8,0.48489]
[1737773415994,2.32845309,3299.9,3299.3,3.2078]
[1737773416192,0.48495,3299.5,3299.3,3.2078]
[1737773416388,0.9803,3299.8,3299.3,3.2078]
[1737773416593,0.4796,3299.8,3299.3,3.2078]
[1737773416792,0.4796,3299.8,3299.4,0.4758]
[1737773416986,0.4796,3299.8,3299.6,0.48491]
[1737773417894,0.4796,3299.8,3299.5,0.5089]
[1737773418089,0.4796,3299.8,3299.5,0.99383]
[1737773418895,0.4796,3299.8,3299.5,0.5089]
[1737773419191,0.48491,3299.7,3299.3,3.2078]
[1737773419396,0.4796,3299.8,3299.3,3.2078]
[1737773419397,0.5045,3299.6,3299.3,3.2078]
[1737773419589,0.48494,3299.5,3299.3,3.2078]
[1737773419789,0.48496,3299.4,3299.3,3.2078]
[1737773420092,0.48496,3299.4,3299.0,1.0116]
[1737773420093,3.7123,3299.6,3299.0,0.5089]
[1737773420289,0.48496,3299.4,3299.0,0.5089]
[1737773420792,0.4936,3299.5,3299.0,0.5089]
[1737773421392,0.48496,3299.4,3299.0,0.99391]
[1737773421595,0.97855,3299.5,3299.0,0.99391]
[1737773421797,0.4936,3299.5,3299.0,0.99391]
[1737773422003,0.48497,3299.3,3299.0,0.5089]
[1737773422494,0.48497,3299.3,3298.9,0.00455208]
[1737773422495,0.5072,3299.2,3298.9,0.00455208]
[1737773422798,0.99219,3299.2,3298.9,0.00455208]
[1737773426297,0.48501,3299.0,3298.9,0.00455208]
[1737773431797,0.96461,3299.0,3298.9,0.00455208]
[1737773432903,4.9587749,3299.0,3298.9,0.00455208]
[1737773435301,5.9267749,3299.0,3298.9,0.00455208]
[1737773437609,5.9257749,3299.0,3298.9,0.00455208]
[1737773439705,9.1335749,3299.0,3298.9,0.00455208]
[1737773443008,8.1665749,3299.0,3298.9,0.00455208]
[1737773443213,3.2078,3299.0,3298.9,0.00455208]
[1737773443508,3.2078,3299.0,3298.9,0.48958208]
[1737773443710,3.2078,3299.6,3298.9,3.21235208]
[1737773444020,3.2078,3299.6,3299.2,0.48498]
[1737773444316,3.2078,3299.6,3299.3,0.48496]
[1737773444913,3.2078,3299.6,3299.0,1.4755]
[1737773445116,3.2078,3299.6,3299.3,0.48497]
[1737773445908,3.69271,3299.7,3299.3,0.48497]
[1737773446317,3.2078,3299.7,3299.0,1.4755]
[1737773446521,0.48499,3299.2,3299.0,1.4755]
[1737773446723,0.48498,3299.3,3299.0,1.4755]
[1737773450322,0.512,3299.6,3299.0,1.4755]
[1737773450527,5.53625309,3299.7,3299.0,1.4755]
[1737773450725,6.02117309,3299.7,3299.4,0.48495]
[1737773452925,6.02117309,3299.7,3299.0,1.4755]
[1737773453121,5.53625309,3299.7,3299.0,1.4755]
[1737773453426,0.48499,3299.2,3299.0,1.4755]
[1737773453728,2.32845309,3299.4,3299.0,1.4755]
[1737773454029,0.48497,3299.3,3299.0,1.4755]
[1737773456728,0.48499,3299.2,3299.0,1.4755]
[1737773458432,2.32845309,3299.4,3299.0,1.4755]
[1737773458634,0.48498,3299.3,3299.0,1.96051]
[1737773461825,0.5127,3299.6,3299.0,1.4755]
[1737773462028,3.69272,3299.7,3299.4,0.48495]
[1737773462732,3.2078,3299.7,3299.4,0.48495]
[1737773463034,5.53625309,3299.7,3299.0,1.4755]
[1737773463235,3.87175876,3299.6,3299.0,1.4755]
[1737773463530,0.4787,3299.5,3299.0,1.4755]
[1737773463728,2.32845309,3299.4,3299.0,1.4755]
[1737773463931,0.485,3299.1,3299.0,1.4755]
[1737773464125,2.32845309,3299.4,3299.0,1.4755]
[1737773464432,3.94266508,3299.4,3299.1,0.48499]
[1737773465426,6.50225309,3299.7,3299.0,1.4755]
[1737773465726,0.48498,3299.3,3299.0,1.96051]
[1737773466731,0.48498,3299.3,3299.0,1.4755]
[1737773466930,0.48499,3299.2,3299.0,1.4755]
[1737773467127,3.88937644,3299.6,3299.0,1.4755]
[1737773467430,0.48498,3299.3,3299.0,1.4755]
[1737773469526,3.88937644,3299.6,3299.0,1.4755]
[1737773469833,0.485,3299.1,3299.0,1.4755]
[1737773470339,2.32845309,3299.4,3299.0,1.4755]
[1737773470340,0.485,3299.2,3299.0,1.4755]
[1737773471739,0.485,3299.2,3299.0,1.96051]
[1737773472347,0.485,3299.2,3299.0,1.4755]
[1737773475046,0.485,3299.2,3299.0,1.96051]
[1737773476845,1.50548,3299.3,3299.0,1.96051]
[1737773477242,1.50548,3299.3,3299.1,0.44738132]
[1737773477447,1.50548,3299.3,3299.0,1.4755]
[1737773477746,1.0205,3299.3,3299.1,0.93236553]
[1737773478045,1.0205,3299.3,3299.1,0.48499]
[1737773479149,0.4968,3299.3,3299.1,0.48499]
[1737773480448,3.2078,3299.7,3299.0,1.4755]
[1737773480745,3.2078,3299.7,3299.6,0.48493]
[1737773480943,2.32845309,3300.0,3299.6,0.447224]
[1737773481143,2.32845309,3300.0,3299.9,0.48488]
[1737773481743,0.5029,3300.2,3300.1,0.48485]
[1737773482055,2.32845309,3300.3,3300.1,0.48485]
[1737773482439,2.83135309,3300.6,3299.8,0.5081]
[1737773482645,2.83135309,3300.6,3299.9,0.44643929]
[1737773482846,2.83135309,3300.6,3300.4,0.4848]
[1737773483341,10.68302377,3300.7,3299.9,1.21221]
[1737773483541,10.68302377,3300.7,3300.0,0.44630232]
[1737773483746,10.68302377,3300.7,3299.9,1.21221]
[1737773483747,10.68302377,3300.7,3300.1,0.44630232]
[1737773483943,10.68302377,3300.7,3300.5,0.48479]
[1737773484549,0.00454496,3300.7,3300.5,0.48479]
[1737773485146,0.00454496,3300.7,3299.9,1.21221]
[1737773485451,2.32845309,3300.6,3300.0,0.44569865]
[1737773485650,0.48481,3300.4,3300.0,0.48486]
[1737773486047,1.5107,3300.5,3300.1,0.48485]
[1737773486555,1.0259,3300.5,3300.3,0.48482]
[1737773486756,0.00454496,3300.7,3299.8,0.5081]
[1737773487449,0.00454496,3300.7,3300.3,0.48482]
[1737773487649,0.00454496,3300.7,3300.4,0.9966]
[1737773487851,0.00454496,3300.7,3300.4,1.4717]
[1737773489950,0.00454496,3300.7,3300.4,1.9565]
[1737773490754,2.32845309,3300.6,3300.4,1.4717]
[1737773491058,0.48482,3300.3,3299.9,0.48488]
[1737773491354,0.48482,3300.4,3300.0,0.48487]
[1737773492155,0.48482,3300.4,3299.8,1.4761]
[1737773492156,0.5188,3300.5,3299.8,1.4761]
[1737773492349,0.48486,3300.1,3299.8,1.4761]
[1737773492546,2.32845309,3300.3,3299.8,1.4761]
[1737773492759,0.48485,3300.2,3299.8,1.96099]
[1737773493858,0.48485,3300.1,3299.8,1.96099]
[1737773496058,0.48487,3300.0,3299.8,1.96099]
[1737773498663,0.4771,3300.2,3299.8,1.96099]
[1737773498865,0.48486,3300.1,3299.8,1.4761]
[1737773499059,0.48486,3300.1,3299.9,0.48488]
[1737773499361,0.48488,3299.9,3299.8,1.4761]
[1737773499565,0.4771,3300.2,3299.8,1.4761]
[1737773499761,0.48486,3300.1,3299.9,0.48488]
[1737773499957,0.5188,3300.5,3299.8,1.4761]
[1737773500265,0.4848,3300.5,3300.3,0.48482]
[1737773500467,0.00454496,3300.7,3300.4,1.5089]
[1737773500663,0.48931496,3300.7,3300.4,1.9937]
[1737773500867,0.00454496,3300.7,3300.4,1.9937]
[1737773501265,0.00454496,3300.7,3300.4,1.5089]
[1737773501566,0.00454496,3300.7,3300.4,1.99371]
[1737773502263,0.00454496,3300.7,3300.4,1.5089]
[1737773502469,0.48478,3300.6,3300.4,1.5089]
[1737773502775,0.48931496,3300.7,3300.4,1.5089]
[1737773503069,0.00454496,3300.7,3300.4,1.99371]
[1737773503470,0.48932496,3300.7,3300.4,1.5089]
[1737773504565,0.48932496,3300.7,3300.4,1.99371]
[1737773505269,0.48932496,3300.7,3300.4,1.5089]
[1737773506373,0.00454496,3300.7,3300.4,1.5089]
[1737773506671,0.00454496,3300.7,3300.6,0.48478]
[1737773507375,0.00454496,3300.7,3300.5,0.48479]
[1737773507667,0.00454496,3300.7,3300.4,1.5089]
[1737773507668,0.48479,3300.6,3300.4,1.5089]
[1737773508675,0.48479,3300.5,3300.4,1.5089]
[1737773508965,3.87753173,3300.5,3299.6,3.2078]
[1737773509173,0.48489,3299.9,3299.6,3.2078]
[1737773509361,2.32845309,3300.2,3299.6,3.2078]
[1737773509564,0.4849,3299.8,3299.6,3.2078]
[1737773509870,0.48488,3299.9,3299.6,3.2078]
[1737773510172,4.5002411,3300.1,3299.6,3.2078]
[1737773510364,0.48489,3299.9,3299.6,3.2078]
[1737773510776,0.5216,3300.0,3299.6,3.2078]
[1737773511075,1.00647,3300.0,3299.6,3.69272]
[1737773511269,0.5216,3300.0,3299.6,3.2078]
[1737773511467,0.4849,3299.9,3299.6,3.2078]
[1737773511770,1.00647,3300.0,3299.6,3.69271]
[1737773511975,0.48484,3300.2,3299.8,0.48489]
[1737773512271,3.2078,3300.3,3299.6,3.2078]
[1737773512479,0.48486,3300.1,3299.7,0.4849]
[1737773514865,0.48488,3300.0,3299.5,0.97193]
[1737773515172,0.48489,3299.9,3299.5,0.97193]
[1737773515873,0.4969,3300.1,3299.5,0.487]
[1737773516077,0.48489,3299.9,3299.5,0.97194]
[1737773517472,0.4849,3299.8,3299.5,0.487]
[1737773518378,0.48485,3300.2,3299.8,0.48488]
[1737773518583,0.48482,3300.4,3300.0,0.48486]
[1737773518777,0.48484,3300.3,3300.1,0.976]
[1737773520183,0.987,3300.6,3300.1,0.976]
[1737773520379,0.48483,3300.3,3300.1,0.976]
[1737773522984,0.48482,3300.4,3300.1,0.976]
[1737773528483,0.987,3300.6,3300.1,0.976]
[1737773528792,0.48482,3300.3,3300.1,0.976]
[1737773530790,0.48482,3300.4,3300.1,0.976]
[1737773531784,0.987,3300.6,3300.1,0.976]
[1737773531991,3.21234496,3300.7,3300.1,0.976]
[1737773532289,3.21234496,3300.7,3300.5,0.48479]
[1737773532482,3.21234496,3300.7,3300.6,0.524]
[1737773532687,0.00454496,3300.7,3300.6,0.524]
[1737773533888,0.00454496,3300.7,3300.6,1.00878]
[1737773534287,0.00454496,3300.7,3300.6,0.524]
[1737773539292,0.00454496,3300.7,3300.5,0.48478]
[1737773539293,8.8787756,3300.7,3300.0,4.73631447]
[1737773539492,0.48485,3300.1,3300.0,4.73631447]
[1737773541193,0.48485,3300.1,3299.7,0.48491]
[1737773541494,1.48964,3300.2,3299.8,0.4849]
[1737773541694,0.5271,3300.2,3300.0,0.48486]
[1737773541895,0.955,3300.3,3300.0,0.48486]
[1737773542095,0.955,3300.3,3300.1,0.4813]
[1737773542492,1.43983,3300.3,3300.1,0.4813]
[1737773545593,0.4903,3300.5,3300.1,0.4813]
[1737773545992,0.955,3300.6,3300.4,0.4848]
[1737773546292,3.21234496,3300.7,3300.4,0.4848]
[1737773546897,3.69711496,3300.7,3300.3,0.48482]
[1737773547096,3.21234496,3300.7,3300.2,1.0108]
[1737773547498,0.48483,3300.3,3300.1,0.4813]
[1737773548192,0.48484,3300.2,3300.1,0.4813]
[1737773548797,7.80644418,3300.6,3300.1,0.4813]
[1737773549093,0.4849,3299.8,3299.7,4.73631447]
[1737773555294,3.2078,3299.9,3299.7,4.73631447]
[1737773556506,3.2078,3299.9,3299.6,1.49522]
[1737773557001,3.2078,3299.9,3299.6,1.0103]
[1737773557198,3.69268,3299.9,3299.6,1.0103]
[1737773563308,3.2078,3299.9,3299.6,1.0103]
[1737773563603,3.69269,3299.9,3299.6,1.0103]
[1737773564707,3.69268,3299.9,3299.6,1.0103]
[1737773565299,0.4849,3299.8,3299.6,1.0103]
[1737773568106,0.4826,3300.1,3299.6,1.0103]
[1737773568311,0.48489,3299.9,3299.6,1.0103]
[1737773569013,0.4826,3300.1,3299.6,1.0103]
[1737773569212,0.4849,3299.8,3299.6,1.0103]
[1737773571711,0.4849,3299.8,3299.6,0.5236]
[1737773571916,0.4849,3299.8,3299.2,3.2078]
[1737773571917,0.48497,3299.3,3299.2,3.2078]
[1737773572115,0.48499,3299.2,3299.0,4.73631447]
[1737773572810,3.7253,3299.6,3299.0,4.73631447]
[1737773573011,0.48497,3299.3,3299.0,4.73631447]
[1737773573617,0.48497,3299.3,3298.9,0.00455208]
[1737773574227,3.7253,3299.6,3298.9,0.00455208]
[1737773574521,0.48499,3299.2,3298.9,0.00455208]
[1737773577330,0.485,3299.1,3298.9,0.00455208]
[1737773582734,0.485,3299.1,3298.9,0.48958208]
[1737773585633,0.48496,3299.4,3299.0,0.48501]
[1737773585825,0.48497,3299.3,3299.0,0.48501]
[1737773586027,0.48497,3299.3,3299.1,0.485]
[1737773586730,0.48497,3299.3,3299.0,0.48501]
[1737773587927,0.48501,3299.0,3298.9,0.00455208]
[1737773594727,1.10323385,3299.4,3298.9,0.00455208]
[1737773594929,0.48501,3299.1,3298.9,0.48958208]
[1737773595829,1.10323385,3299.4,3298.9,0.00455208]
[1737773597238,3.2078,3299.5,3299.1,1.10323385]
[1737773597537,3.2078,3299.5,3299.3,1.10323385]
[1737773597840,3.2078,3299.5,3299.4,0.4787]
[1737773598036,3.2078,3299.5,3299.4,1.461]
[1737773599933,3.2078,3299.5,3299.4,1.94596]
[1737773602244,1.0109,3299.8,3299.4,1.461]
[1737773602440,1.0109,3299.8,3299.5,0.48494]
[1737773603144,0.526,3299.8,3299.5,0.48494]
[1737773603440,0.526,3299.8,3299.4,1.461]
[1737773603743,0.526,3299.8,3299.6,0.48493]
[1737773604644,0.526,3299.8,3299.5,0.48494]
[1737773605040,0.526,3299.8,3299.4,1.461]
[1737773605244,3.2078,3300.2,3299.4,3.79057115]
[1737773605439,3.7288,3300.2,3299.9,0.48487]
[1737773605739,0.521,3300.2,3299.9,0.48487]
[1737773607741,0.521,3300.2,3299.5,7.94411447]
[1737773608041,6.03057115,3300.6,3300.2,0.48483]
[1737773608042,3.69259,3300.6,3300.2,0.48483]
[1737773608342,0.5029,3300.5,3300.3,0.4872]
[1737773610241,0.5029,3300.5,3299.9,3.2078]
[1737773610641,0.5029,3300.5,3300.2,0.48484]
[1737773610839,0.5029,3300.5,3300.3,0.4981]
[1737773611039,0.5029,3300.5,3300.3,0.9779]
[1737773611239,3.2078,3300.6,3300.5,0.48479]
[1737773611947,3.2078,3300.6,3300.4,1.0043]
[1737773612743,3.2078,3300.6,3300.4,0.5195]
[1737773612950,0.00454496,3300.7,3300.6,0.48478]
[1737773615449,0.00454496,3300.7,3300.4,0.5195]
[1737773615649,0.00454496,3300.7,3300.6,0.48478]
[1737773623658,0.00454496,3300.7,3300.6,1.58670677]
[1737773624563,3.69246,3301.5,3300.6,1.10192677]
[1737773624860,3.7242,3301.5,3301.2,1.10192677]
[1737773625159,3.7242,3301.5,3301.4,0.48466]
[1737773625353,3.7242,3301.5,3301.3,0.9752]
[1737773625559,3.7242,3301.5,3301.0,1.58972677]
[1737773625762,3.7242,3301.5,3301.4,0.48466]
[1737773626057,3.2078,3301.5,3301.4,1.58658677]
[1737773626853,0.00299623,3301.7,3301.6,0.48463]
[1737773627453,0.00299623,3301.7,3301.6,1.58655677]
[1737773627665,0.00299623,3301.7,3301.6,0.48463]
[1737773628058,0.00299623,3301.7,3301.6,1.48513]
[1737773630063,0.00299623,3301.7,3301.4,0.48465]
[1737773630255,0.48762623,3301.7,3301.4,0.48465]
[1737773630562,0.48762623,3301.7,3301.5,0.48465]
[1737773631460,0.00299623,3301.7,3301.3,3.2078]
[1737773631658,0.00299623,3301.7,3301.5,0.48463]
[1737773631960,0.48761623,3301.7,3301.5,0.48463]
[1737773632463,0.00299623,3301.7,3301.3,3.2078]
[1737773632664,0.00299623,3301.7,3301.6,0.48463]
[1737773633959,0.00299623,3301.7,3301.6,0.97893]
[1737773634853,0.00299623,3301.7,3301.6,0.48463]
[1737773639068,0.00299623,3301.7,3301.5,0.48464]
[1737773639265,0.48762623,3301.7,3301.5,0.48464]
[1737773639571,0.00299623,3301.7,3301.1,2.98854496]
[1737773639760,3.2078,3301.4,3301.1,0.00454496]
[1737773640069,0.48469,3301.2,3301.1,0.00454496]
[1737773641760,2.01498,3301.3,3301.1,0.00454496]
[1737773645470,1.5303,3301.3,3301.1,0.00454496]
[1737773647666,2.01498,3301.3,3301.1,0.00454496]
[1737773653367,1.5303,3301.3,3301.1,0.00454496]
[1737773653569,0.48469,3301.2,3301.1,0.00454496]
[1737773654173,2.01498,3301.3,3301.1,0.00454496]
[1737773657082,1.5303,3301.3,3301.1,0.00454496]
[1737773657282,2.01499,3301.3,3301.1,0.00454496]
[1737773657779,0.48469,3301.2,3301.1,0.00454496]
[1737773661678,6.68910189,3301.2,3301.1,0.00454496]
[1737773662679,4.36283148,3301.2,3301.1,0.00454496]
[1737773663281,2.997,3301.3,3301.2,0.48469]
[1737773663477,3.2078,3301.4,3301.2,1.96929]
[1737773664180,3.2078,3301.4,3301.3,0.48468]
[1737773665681,3.2078,3301.4,3301.2,1.96928]
[1737773665988,3.2078,3301.4,3301.2,1.4846]
[1737773666288,3.69246,3301.4,3301.2,1.4846]
[1737773669086,3.2078,3301.4,3301.2,1.4846]
[1737773669290,0.48468,3301.3,3301.2,1.4846]
[1737773669989,0.48469,3301.2,3301.1,0.00454496]